[Event "Titled Tuesday Blitz November 07 Early 2023"]
[White "Escudero Donoso, Felipe"]
[Black "carokannlover213"]
[WhiteFideId "3410595"]
[WhiteElo "2454"]
[BlackElo "2685"]
[Result "0-1"]
[Round "3"]
[TimeControl "180+1"]
[Date "2023.11.07"]
[WhiteClock "0:01:12"]
[BlackClock "0:01:49"]
[Board "106"]

1. d4 {[%clk 0:02:59]}  g6 {[%clk 0:03:00]} 2. c4 {[%clk 0:02:57]}  Bg7 {[%clk 0:03:01]} 3. Nc3 {[%clk 0:02:57]}  c5 {[%clk 0:03:01]} 4. Nf3 {[%clk 0:02:57]}  cxd4 {[%clk 0:02:59]} 5. Nxd4 {[%clk 0:02:57]}  Nc6 {[%clk 0:02:59]} 6. Nc2 {[%clk 0:02:55]}  Bxc3+ {[%clk 0:02:59]} 7. bxc3 {[%clk 0:02:55]}  Qa5 {[%clk 0:02:59]} 8. Bd2 {[%clk 0:02:49]}  f5 {[%clk 0:02:59]} 9. g3 {[%clk 0:02:48]}  Nf6 {[%clk 0:02:58]} 10. Bg2 {[%clk 0:02:49]}  d6 {[%clk 0:02:58]} 11. O-O {[%clk 0:02:49]}  O-O {[%clk 0:02:55]} 12. Nd4 {[%clk 0:02:44]}  Ne4 {[%clk 0:02:53]} 13. Qc2 {[%clk 0:02:40]}  Nxd4 {[%clk 0:02:52]} 14. cxd4 {[%clk 0:02:38]}  Nxd2 {[%clk 0:02:52]} 15. Rfd1 {[%clk 0:02:37]}  Ne4 {[%clk 0:02:52]} 16. Rd3 {[%clk 0:02:26]}  Bd7 {[%clk 0:02:49]} 17. Rb1 {[%clk 0:02:25]}  Rab8 {[%clk 0:02:47]} 18. Qb2 {[%clk 0:02:21]}  b5 {[%clk 0:02:41]} 19. Ra3 {[%clk 0:02:13]}  Qc7 {[%clk 0:02:33]} 20. c5 {[%clk 0:01:59]}  dxc5 {[%clk 0:02:26]} 21. dxc5 {[%clk 0:01:59]}  Qxc5 {[%clk 0:02:25]} 22. e3 {[%clk 0:01:57]}  b4 {[%clk 0:02:22]} 23. Rd3 {[%clk 0:01:52]}  Be6 {[%clk 0:02:18]} 24. Rd4 {[%clk 0:01:50]}  Nc3 {[%clk 0:02:16]} 25. Re1 {[%clk 0:01:45]}  Bxa2 {[%clk 0:02:11]} 26. h4 {[%clk 0:01:44]}  Bf7 {[%clk 0:02:11]} 27. h5 {[%clk 0:01:44]}  e5 {[%clk 0:02:10]} 28. Rd2 {[%clk 0:01:40]}  Na4 {[%clk 0:02:04]} 29. Qb1 {[%clk 0:01:34]}  b3 {[%clk 0:02:02]} 30. hxg6 {[%clk 0:01:34]}  hxg6 {[%clk 0:01:58]} 31. Rd7 {[%clk 0:01:34]}  Rbd8 {[%clk 0:01:56]} 32. Rxf7 {[%clk 0:01:25]}  Rxf7 {[%clk 0:01:55]} 33. Qxb3 {[%clk 0:01:26]}  Qc3 {[%clk 0:01:55]} 34. Qb1 {[%clk 0:01:21]}  Rfd7 {[%clk 0:01:50]} 35. Bc6 {[%clk 0:01:19]}  Qxe1+ {[%clk 0:01:49]} 36. Qxe1 {[%clk 0:01:12]}  Rd1 {[%clk 0:01:49]} 0-1


[Site "https://www.chess.com"]

[Event "Titled Tuesday Blitz November 07 Early 2023"]
[White "Arifarsky"]
[Black "Kanyamarala, Tarun"]
[BlackFideId "45004714"]
[WhiteElo "2669"]
[BlackElo "2449"]
[Result "1-0"]
[Round "3"]
[TimeControl "180+1"]
[Date "2023.11.07"]
[WhiteClock "0:01:05"]
[BlackClock "0:00:13"]
[Board "108"]

1. e4 {[%clk 0:02:55]}  c5 {[%clk 0:02:56]} 2. Nf3 {[%clk 0:02:55]}  e6 {[%clk 0:02:49]} 3. d4 {[%clk 0:02:51]}  cxd4 {[%clk 0:02:48]} 4. Nxd4 {[%clk 0:02:52]}  a6 {[%clk 0:02:46]} 5. Nc3 {[%clk 0:02:50]}  b5 {[%clk 0:02:39]} 6. Bd3 {[%clk 0:02:46]}  Bb7 {[%clk 0:02:38]} 7. Qe2 {[%clk 0:02:44]}  Nc6 {[%clk 0:02:35]} 8. Nxc6 {[%clk 0:02:43]}  Bxc6 {[%clk 0:02:36]} 9. O-O {[%clk 0:02:41]}  Qb8 {[%clk 0:02:28]} 10. a4 {[%clk 0:02:32]}  b4 {[%clk 0:02:24]} 11. Nd5 {[%clk 0:02:32]}  Bd6 {[%clk 0:02:24]} 12. h3 {[%clk 0:02:19]}  Ne7 {[%clk 0:02:15]} 13. Nxe7 {[%clk 0:02:04]}  Bxe7 {[%clk 0:02:14]} 14. Bxa6 {[%clk 0:01:53]}  Qb6 {[%clk 0:02:06]} 15. Bd3 {[%clk 0:01:48]}  Rxa4 {[%clk 0:02:01]} 16. Rxa4 {[%clk 0:01:46]}  Bxa4 {[%clk 0:01:59]} 17. b3 {[%clk 0:01:42]}  Bc6 {[%clk 0:01:58]} 18. Bb2 {[%clk 0:01:41]}  O-O {[%clk 0:01:48]} 19. Qg4 {[%clk 0:01:31]}  f6 {[%clk 0:01:47]} 20. Kh1 {[%clk 0:01:26]}  Bc5 {[%clk 0:01:44]} 21. Qg3 {[%clk 0:01:21]}  Bd4 {[%clk 0:01:42]} 22. Bc1 {[%clk 0:01:20]}  Ra8 {[%clk 0:01:37]} 23. Bh6 {[%clk 0:01:16]}  g6 {[%clk 0:01:36]} 24. e5 {[%clk 0:01:13]}  Bxe5 {[%clk 0:01:35]} 25. f4 {[%clk 0:01:12]}  Kf7 {[%clk 0:00:57]} 26. fxe5 {[%clk 0:01:11]}  f5 {[%clk 0:00:58]} 27. Qh4 {[%clk 0:01:09]}  Qd8 {[%clk 0:00:57]} 28. Bg5 {[%clk 0:01:08]}  Qh8 {[%clk 0:00:55]} 29. Bf6 {[%clk 0:01:06]}  Qg8 {[%clk 0:00:13]} 30. Kg1 {[%clk 0:01:05]} 1-0


[Site "https://www.chess.com"]

[Event "Titled Tuesday Blitz November 07 Early 2023"]
[White "Perdomo, Leandro"]
[Black "Herman, Daniel"]
[WhiteFideId "109746"]
[BlackFideId "30935008"]
[WhiteElo "2669"]
[BlackElo "2447"]
[Result "1-0"]
[Round "3"]
[TimeControl "180+1"]
[Date "2023.11.07"]
[WhiteClock "0:01:24"]
[BlackClock "0:00:04"]
[Board "109"]

1. d4 {[%clk 0:03:00]}  Nf6 {[%clk 0:02:59]} 2. c4 {[%clk 0:03:01]}  g6 {[%clk 0:02:59]} 3. Nc3 {[%clk 0:03:00]}  Bg7 {[%clk 0:02:59]} 4. e4 {[%clk 0:03:01]}  O-O {[%clk 0:02:59]} 5. f3 {[%clk 0:03:01]}  d6 {[%clk 0:02:59]} 6. Be3 {[%clk 0:03:01]}  c5 {[%clk 0:02:59]} 7. Nge2 {[%clk 0:03:01]}  Nc6 {[%clk 0:02:52]} 8. d5 {[%clk 0:03:01]}  Na5 {[%clk 0:02:48]} 9. Ng3 {[%clk 0:03:00]}  a6 {[%clk 0:02:43]} 10. Rc1 {[%clk 0:03:00]}  Bd7 {[%clk 0:02:37]} 11. Be2 {[%clk 0:02:58]}  b5 {[%clk 0:02:35]} 12. b3 {[%clk 0:02:58]}  Rb8 {[%clk 0:02:20]} 13. O-O {[%clk 0:02:57]}  bxc4 {[%clk 0:02:18]} 14. bxc4 {[%clk 0:02:58]}  Rb4 {[%clk 0:02:18]} 15. Nb1 {[%clk 0:02:51]}  Ba4 {[%clk 0:01:50]} 16. Qe1 {[%clk 0:02:47]}  Rb2 {[%clk 0:01:42]} 17. Nc3 {[%clk 0:02:44]}  Bd7 {[%clk 0:01:36]} 18. Rb1 {[%clk 0:02:06]}  Qb6 {[%clk 0:01:32]} 19. e5 {[%clk 0:01:50]}  dxe5 {[%clk 0:01:05]} 20. Nge4 {[%clk 0:01:44]}  Nxe4 {[%clk 0:00:56]} 21. Nxe4 {[%clk 0:01:45]}  Rxb1 {[%clk 0:00:21]} 22. Qxb1 {[%clk 0:01:46]}  Qxb1 {[%clk 0:00:21]} 23. Rxb1 {[%clk 0:01:47]}  Bf5 {[%clk 0:00:21]} 24. Bd2 {[%clk 0:01:41]}  Nxc4 {[%clk 0:00:09]} 25. Bxc4 {[%clk 0:01:41]}  Rd8 {[%clk 0:00:10]} 26. Ba5 {[%clk 0:01:39]}  Rc8 {[%clk 0:00:09]} 27. Rb7 {[%clk 0:01:35]}  Bxe4 {[%clk 0:00:06]} 28. fxe4 {[%clk 0:01:36]}  Bh6 {[%clk 0:00:06]} 29. Rxe7 {[%clk 0:01:33]}  Rb8 {[%clk 0:00:05]} 30. d6 {[%clk 0:01:32]}  Rb2 {[%clk 0:00:03]} 31. d7 {[%clk 0:01:25]}  Be3+ {[%clk 0:00:04]} 32. Kf1 {[%clk 0:01:24]}  Rf2+ {[%clk 0:00:03]} 33. Ke1 {[%clk 0:01:25]}  Rxg2 {[%clk 0:00:03]} 34. d8=Q+ {[%clk 0:01:24]}  Kg7 {[%clk 0:00:04]} 35. Rxf7+ {[%clk 0:01:24]}  Kh6 {[%clk 0:00:04]} 36. Qh4# {[%clk 0:01:24]} 1-0


[Site "https://www.chess.com"]

[Event "Titled Tuesday Blitz November 07 Early 2023"]
[White "szachmistrz2500"]
[Black "Jakubowski, Krzysztof"]
[BlackFideId "1112848"]
[WhiteElo "2444"]
[BlackElo "2664"]
[Result "0-1"]
[Round "3"]
[TimeControl "180+1"]
[Date "2023.11.07"]
[WhiteClock "0:02:12"]
[BlackClock "0:01:47"]
[Board "110"]

1. Nf3 {[%clk 0:03:00]}  Nf6 {[%clk 0:02:58]} 2. g3 {[%clk 0:03:00]}  d5 {[%clk 0:02:57]} 3. Bg2 {[%clk 0:03:00]}  Bf5 {[%clk 0:02:57]} 4. d3 {[%clk 0:03:00]}  e6 {[%clk 0:02:56]} 5. O-O {[%clk 0:03:00]}  h6 {[%clk 0:02:55]} 6. Nbd2 {[%clk 0:03:00]}  Be7 {[%clk 0:02:55]} 7. Qe1 {[%clk 0:03:00]}  O-O {[%clk 0:02:54]} 8. e4 {[%clk 0:03:00]}  Bh7 {[%clk 0:02:54]} 9. Ne5 {[%clk 0:03:00]}  Nbd7 {[%clk 0:02:52]} 10. Nxd7 {[%clk 0:03:01]}  Qxd7 {[%clk 0:02:50]} 11. Qe2 {[%clk 0:03:01]}  c5 {[%clk 0:02:48]} 12. e5 {[%clk 0:03:01]}  Ne8 {[%clk 0:02:46]} 13. f4 {[%clk 0:03:01]}  a5 {[%clk 0:02:46]} 14. g4 {[%clk 0:03:01]}  a4 {[%clk 0:02:45]} 15. Qf2 {[%clk 0:02:38]}  Nc7 {[%clk 0:02:34]} 16. f5 {[%clk 0:02:38]}  f6 {[%clk 0:02:33]} 17. exf6 {[%clk 0:02:29]}  Bxf6 {[%clk 0:02:18]} 18. Qxc5 {[%clk 0:02:25]}  a3 {[%clk 0:02:18]} 19. Rb1 {[%clk 0:02:22]}  exf5 {[%clk 0:02:09]} 20. gxf5 {[%clk 0:02:19]}  Bxf5 {[%clk 0:02:03]} 21. Rxf5 {[%clk 0:02:14]}  Qxf5 {[%clk 0:02:02]} 22. Qxc7 {[%clk 0:02:14]}  axb2 {[%clk 0:01:52]} 23. Bxb2 {[%clk 0:02:13]}  Bxb2 {[%clk 0:01:51]} 24. Rxb2 {[%clk 0:02:12]}  Qf2+ {[%clk 0:01:49]} 25. Kh1 {[%clk 0:02:12]}  Qe1+ {[%clk 0:01:46]} 26. Nf1 {[%clk 0:02:12]}  Rxf1+ {[%clk 0:01:46]} 27. Bxf1 {[%clk 0:02:12]}  Qxf1# {[%clk 0:01:47]} 0-1


[Site "https://www.chess.com"]

[Event "Titled Tuesday Blitz November 07 Early 2023"]
[White "Novikova, Galina"]
[Black "Melian, Juan Sebastian"]
[WhiteFideId "4157095"]
[BlackFideId "3706575"]
[WhiteElo "2439"]
[BlackElo "2655"]
[Result "0-1"]
[Round "3"]
[TimeControl "180+1"]
[Date "2023.11.07"]
[WhiteClock "0:00:00"]
[BlackClock "0:00:05"]
[Board "113"]

1. e4 {[%clk 0:02:57]}  c5 {[%clk 0:02:54]} 2. Nf3 {[%clk 0:02:57]}  e6 {[%clk 0:02:49]} 3. b4 {[%clk 0:02:57]}  d5 {[%clk 0:02:44]} 4. e5 {[%clk 0:02:57]}  Nc6 {[%clk 0:02:36]} 5. bxc5 {[%clk 0:02:57]}  Bxc5 {[%clk 0:02:37]} 6. d4 {[%clk 0:02:57]}  Be7 {[%clk 0:02:32]} 7. c3 {[%clk 0:02:58]}  Nh6 {[%clk 0:02:32]} 8. Bd3 {[%clk 0:02:58]}  Nf5 {[%clk 0:02:30]} 9. O-O {[%clk 0:02:58]}  O-O {[%clk 0:02:30]} 10. Na3 {[%clk 0:02:59]}  a6 {[%clk 0:02:30]} 11. Nc2 {[%clk 0:02:59]}  Rb8 {[%clk 0:02:29]} 12. Ne3 {[%clk 0:02:59]}  f6 {[%clk 0:02:26]} 13. a4 {[%clk 0:02:52]}  fxe5 {[%clk 0:02:22]} 14. dxe5 {[%clk 0:02:50]}  Bc5 {[%clk 0:02:05]} 15. Nxf5 {[%clk 0:02:32]}  exf5 {[%clk 0:02:06]} 16. Bf4 {[%clk 0:02:22]}  Be6 {[%clk 0:02:02]} 17. Bc2 {[%clk 0:02:04]}  h6 {[%clk 0:01:59]} 18. Nd4 {[%clk 0:01:58]}  Bxd4 {[%clk 0:01:47]} 19. cxd4 {[%clk 0:01:51]}  Qb6 {[%clk 0:01:29]} 20. Qh5 {[%clk 0:01:15]}  Nxd4 {[%clk 0:01:07]} 21. Rab1 {[%clk 0:00:18]}  Qc6 {[%clk 0:00:49]} 22. Bd3 {[%clk 0:00:12]}  Qe8 {[%clk 0:00:20]} 23. Qh3 {[%clk 0:00:11]}  Qf7 {[%clk 0:00:13]} 24. Rfd1 {[%clk 0:00:09]}  Rfc8 {[%clk 0:00:11]} 25. Be3 {[%clk 0:00:07]}  Nc6 {[%clk 0:00:11]} 26. Bb6 {[%clk 0:00:07]}  Nxe5 {[%clk 0:00:10]} 27. Bf1 {[%clk 0:00:08]}  Nc4 {[%clk 0:00:07]} 28. Bd4 {[%clk 0:00:07]}  Qg6 {[%clk 0:00:06]} 29. Qc3 {[%clk 0:00:05]}  Rc6 {[%clk 0:00:06]} 30. Qe1 {[%clk 0:00:05]}  b5 {[%clk 0:00:06]} 31. axb5 {[%clk 0:00:04]}  axb5 {[%clk 0:00:07]} 32. Ra1 {[%clk 0:00:05]}  b4 {[%clk 0:00:07]} 33. Ra7 {[%clk 0:00:05]}  Bf7 {[%clk 0:00:06]} 34. Qe7 {[%clk 0:00:04]}  b3 {[%clk 0:00:06]} 35. Re1 {[%clk 0:00:03]}  Re8 {[%clk 0:00:05]} 36. Qd7 {[%clk 0:00:02]}  Rxe1 {[%clk 0:00:04]} 37. Ra8+ {[%clk 0:00:03]}  Kh7 {[%clk 0:00:04]} 38. Qd8 {[%clk 0:00:04]}  Rxf1+ {[%clk 0:00:04]} 39. Kxf1 {[%clk 0:00:03]}  Qe6 {[%clk 0:00:05]} 40. Qh8+ {[%clk 0:00:03]}  Kg6 {[%clk 0:00:05]} 41. Be3 {[%clk 0:00:03]}  f4 {[%clk 0:00:05]} 42. h4 {[%clk 0:00:02]}  Nxe3+ {[%clk 0:00:05]} 43. fxe3 {[%clk 0:00:00]}  Rc1+ {[%clk 0:00:05]} 0-1


[Site "https://www.chess.com"]

[Event "Titled Tuesday Blitz November 07 Early 2023"]
[White "Skliarov, Viktor"]
[Black "Berezin, Viktor"]
[WhiteFideId "14106736"]
[BlackFideId "14107872"]
[WhiteElo "2655"]
[BlackElo "2439"]
[Result "1-0"]
[Round "3"]
[TimeControl "180+1"]
[Date "2023.11.07"]
[WhiteClock "0:00:11"]
[BlackClock "0:00:02"]
[Board "114"]

1. e4 {[%clk 0:03:00]}  g6 {[%clk 0:02:57]} 2. d4 {[%clk 0:03:00]}  Bg7 {[%clk 0:02:56]} 3. Nc3 {[%clk 0:03:01]}  d6 {[%clk 0:02:52]} 4. Be3 {[%clk 0:03:01]}  c6 {[%clk 0:02:53]} 5. f3 {[%clk 0:02:59]}  b5 {[%clk 0:02:48]} 6. Qd2 {[%clk 0:02:59]}  Nd7 {[%clk 0:02:47]} 7. O-O-O {[%clk 0:02:58]}  Nb6 {[%clk 0:02:47]} 8. b3 {[%clk 0:02:58]}  a5 {[%clk 0:02:41]} 9. g4 {[%clk 0:02:57]}  a4 {[%clk 0:02:36]} 10. Kb1 {[%clk 0:02:56]}  b4 {[%clk 0:01:39]} 11. Nce2 {[%clk 0:02:55]}  axb3 {[%clk 0:01:39]} 12. cxb3 {[%clk 0:02:54]}  Nf6 {[%clk 0:01:32]} 13. g5 {[%clk 0:02:49]}  Nfd7 {[%clk 0:01:29]} 14. h4 {[%clk 0:02:47]}  Qc7 {[%clk 0:01:05]} 15. h5 {[%clk 0:02:41]}  gxh5 {[%clk 0:00:56]} 16. Nf4 {[%clk 0:02:31]}  c5 {[%clk 0:00:52]} 17. Nxh5 {[%clk 0:02:28]}  Bxd4 {[%clk 0:00:48]} 18. Bxd4 {[%clk 0:02:28]}  cxd4 {[%clk 0:00:48]} 19. Qxd4 {[%clk 0:02:19]}  Ne5 {[%clk 0:00:31]} 20. Bb5+ {[%clk 0:02:05]}  Bd7 {[%clk 0:00:31]} 21. Bxd7+ {[%clk 0:02:05]}  Kxd7 {[%clk 0:00:31]} 22. f4 {[%clk 0:01:58]}  Rxa2 {[%clk 0:00:28]} 23. Rc1 {[%clk 0:01:46]}  Qa7 {[%clk 0:00:22]} 24. fxe5 {[%clk 0:01:31]}  Ra8 {[%clk 0:00:21]} 25. Nf3 {[%clk 0:01:08]}  Ra1+ {[%clk 0:00:21]} 26. Kc2 {[%clk 0:01:06]}  Rc8+ {[%clk 0:00:17]} 27. Kd2 {[%clk 0:01:03]}  Qa2+ {[%clk 0:00:12]} 28. Ke3 {[%clk 0:01:02]}  Raxc1 {[%clk 0:00:08]} 29. Rxc1 {[%clk 0:01:01]}  Rxc1 {[%clk 0:00:09]} 30. Qxb6 {[%clk 0:01:01]}  Rc3+ {[%clk 0:00:07]} 31. Kf4 {[%clk 0:01:01]}  Qa8 {[%clk 0:00:03]} 32. exd6 {[%clk 0:00:55]}  exd6 {[%clk 0:00:03]} 33. Nf6+ {[%clk 0:00:53]}  Ke7 {[%clk 0:00:03]} 34. Nd5+ {[%clk 0:00:49]}  Kf8 {[%clk 0:00:04]} 35. Nxc3 {[%clk 0:00:48]}  bxc3 {[%clk 0:00:04]} 36. Qc7 {[%clk 0:00:38]}  Qa1 {[%clk 0:00:05]} 37. Qxd6+ {[%clk 0:00:36]}  Kg8 {[%clk 0:00:04]} 38. Qd8+ {[%clk 0:00:35]}  Kg7 {[%clk 0:00:05]} 39. Qd4+ {[%clk 0:00:32]}  Kg8 {[%clk 0:00:05]} 40. Kf5 {[%clk 0:00:16]}  Qc1 {[%clk 0:00:04]} 41. Qd8+ {[%clk 0:00:12]}  Kg7 {[%clk 0:00:04]} 42. Qf6+ {[%clk 0:00:12]}  Kg8 {[%clk 0:00:04]} 43. Qd8+ {[%clk 0:00:12]}  Kg7 {[%clk 0:00:04]} 44. Nd4 {[%clk 0:00:10]}  Qf1+ {[%clk 0:00:04]} 45. Ke5 {[%clk 0:00:11]}  Qf2 {[%clk 0:00:02]} 46. Qf6+ {[%clk 0:00:11]}  Qxf6+ {[%clk 0:00:02]} 47. gxf6+ {[%clk 0:00:12]}  Kg6 {[%clk 0:00:03]} 48. b4 {[%clk 0:00:12]}  h5 {[%clk 0:00:02]} 49. b5 {[%clk 0:00:11]} 1-0


[Site "https://www.chess.com"]

[Event "Titled Tuesday Blitz November 07 Early 2023"]
[White "Maltsevskaya, Aleksandra"]
[Black "Tworuszka, Michal"]
[WhiteFideId "24174041"]
[BlackFideId "1117858"]
[WhiteElo "2652"]
[BlackElo "2438"]
[Result "0-1"]
[Round "3"]
[TimeControl "180+1"]
[Date "2023.11.07"]
[WhiteClock "0:00:00"]
[BlackClock "0:00:02"]
[Board "116"]

1. Nf3 {[%clk 0:03:00]}  d5 {[%clk 0:02:57]} 2. g3 {[%clk 0:03:00]}  Nd7 {[%clk 0:02:54]} 3. d4 {[%clk 0:02:59]}  Nb6 {[%clk 0:02:54]} 4. Bg2 {[%clk 0:02:58]}  Nf6 {[%clk 0:02:54]} 5. O-O {[%clk 0:02:58]}  Bf5 {[%clk 0:02:52]} 6. a4 {[%clk 0:02:55]}  a5 {[%clk 0:02:48]} 7. b3 {[%clk 0:02:51]}  e6 {[%clk 0:02:47]} 8. Nbd2 {[%clk 0:02:50]}  c6 {[%clk 0:02:08]} 9. c4 {[%clk 0:02:48]}  Bb4 {[%clk 0:02:06]} 10. Bb2 {[%clk 0:02:46]}  O-O {[%clk 0:02:05]} 11. Rc1 {[%clk 0:02:39]}  Rc8 {[%clk 0:02:04]} 12. h3 {[%clk 0:02:30]}  h6 {[%clk 0:02:02]} 13. Ne5 {[%clk 0:02:17]}  Nfd7 {[%clk 0:01:28]} 14. Ndf3 {[%clk 0:01:21]}  Nxe5 {[%clk 0:01:03]} 15. Nxe5 {[%clk 0:01:19]}  Nd7 {[%clk 0:00:49]} 16. Nd3 {[%clk 0:01:19]}  Bd6 {[%clk 0:00:40]} 17. g4 {[%clk 0:00:44]}  Bh7 {[%clk 0:00:35]} 18. f4 {[%clk 0:00:44]}  b6 {[%clk 0:00:24]} 19. Ne5 {[%clk 0:00:24]}  Nxe5 {[%clk 0:00:08]} 20. fxe5 {[%clk 0:00:22]}  Be7 {[%clk 0:00:08]} 21. e4 {[%clk 0:00:18]}  dxe4 {[%clk 0:00:07]} 22. Qe2 {[%clk 0:00:18]}  c5 {[%clk 0:00:07]} 23. Rcd1 {[%clk 0:00:15]}  cxd4 {[%clk 0:00:06]} 24. Bxd4 {[%clk 0:00:15]}  Qc7 {[%clk 0:00:03]} 25. Bxe4 {[%clk 0:00:13]}  Bxe4 {[%clk 0:00:04]} 26. Qxe4 {[%clk 0:00:11]}  Rfd8 {[%clk 0:00:04]} 27. Kg2 {[%clk 0:00:11]}  Bc5 {[%clk 0:00:05]} 28. Bxc5 {[%clk 0:00:11]}  bxc5 {[%clk 0:00:06]} 29. Kf3 {[%clk 0:00:09]}  Qb6 {[%clk 0:00:05]} 30. Qe3 {[%clk 0:00:08]}  Qc7 {[%clk 0:00:04]} 31. Ke2 {[%clk 0:00:05]}  Qc6 {[%clk 0:00:03]} 32. Qf3 {[%clk 0:00:05]}  Qb6 {[%clk 0:00:03]} 33. Qxf7+ {[%clk 0:00:03]}  Kh8 {[%clk 0:00:03]} 34. Qf3 {[%clk 0:00:04]}  Qc7 {[%clk 0:00:02]} 35. Qe3 {[%clk 0:00:04]}  Qe7 {[%clk 0:00:02]} 36. Rxd8+ {[%clk 0:00:04]}  Rxd8 {[%clk 0:00:02]} 37. Rf4 {[%clk 0:00:04]}  Qc7 {[%clk 0:00:01]} 38. Kf2 {[%clk 0:00:04]}  Qb6 {[%clk 0:00:02]} 39. Kg3 {[%clk 0:00:03]}  Qb4 {[%clk 0:00:02]} 40. Rf2 {[%clk 0:00:02]}  Qa3 {[%clk 0:00:02]} 41. Qf3 {[%clk 0:00:01]}  Qa1 {[%clk 0:00:02]} 42. Re2 {[%clk 0:00:02]}  Qd4 {[%clk 0:00:02]} 43. Qf4 {[%clk 0:00:01]}  Qg1+ {[%clk 0:00:02]} 44. Kf3 {[%clk 0:00:01]}  Qf1+ {[%clk 0:00:02]} 45. Ke3 {[%clk 0:00:00]}  Rd3+ {[%clk 0:00:02]} 0-1


[Site "https://www.chess.com"]

[Event "Titled Tuesday Blitz November 07 Early 2023"]
[White "Chor, Kevin"]
[Black "Kostiukov, Alexandr"]
[WhiteFideId "2090740"]
[BlackFideId "14108100"]
[WhiteElo "2651"]
[BlackElo "2435"]
[Result "1/2-1/2"]
[Round "3"]
[TimeControl "180+1"]
[Date "2023.11.07"]
[WhiteClock "0:00:41"]
[BlackClock "0:00:12"]
[Board "118"]

1. d4 {[%clk 0:02:59]}  g6 {[%clk 0:02:54]} 2. c4 {[%clk 0:02:59]}  Bg7 {[%clk 0:02:46]} 3. Nf3 {[%clk 0:02:59]}  d6 {[%clk 0:02:47]} 4. g3 {[%clk 0:02:59]}  e5 {[%clk 0:02:47]} 5. d5 {[%clk 0:02:52]}  f5 {[%clk 0:02:46]} 6. Bg2 {[%clk 0:02:48]}  Nf6 {[%clk 0:02:47]} 7. O-O {[%clk 0:02:47]}  O-O {[%clk 0:02:47]} 8. Nc3 {[%clk 0:02:47]}  a5 {[%clk 0:02:47]} 9. e4 {[%clk 0:02:45]}  Na6 {[%clk 0:02:46]} 10. Ne1 {[%clk 0:02:41]}  fxe4 {[%clk 0:02:39]} 11. Nxe4 {[%clk 0:02:35]}  Nxe4 {[%clk 0:02:39]} 12. Bxe4 {[%clk 0:02:36]}  Bh3 {[%clk 0:02:38]} 13. Bg2 {[%clk 0:02:36]}  Bxg2 {[%clk 0:02:38]} 14. Kxg2 {[%clk 0:02:30]}  Qd7 {[%clk 0:02:33]} 15. Nd3 {[%clk 0:02:28]}  b6 {[%clk 0:02:32]} 16. Be3 {[%clk 0:02:25]}  Nc5 {[%clk 0:02:31]} 17. Nxc5 {[%clk 0:02:08]}  bxc5 {[%clk 0:02:31]} 18. Qe2 {[%clk 0:02:03]}  Rab8 {[%clk 0:02:29]} 19. b3 {[%clk 0:02:00]}  a4 {[%clk 0:02:21]} 20. Rab1 {[%clk 0:01:58]}  Rb4 {[%clk 0:02:15]} 21. Bd2 {[%clk 0:01:58]}  Rb6 {[%clk 0:02:03]} 22. b4 {[%clk 0:01:57]}  cxb4 {[%clk 0:01:59]} 23. Bxb4 {[%clk 0:01:58]}  Rfb8 {[%clk 0:01:58]} 24. a3 {[%clk 0:01:58]}  c5 {[%clk 0:01:48]} 25. dxc6 {[%clk 0:01:58]}  Qxc6+ {[%clk 0:01:49]} 26. Kg1 {[%clk 0:01:56]}  Rc8 {[%clk 0:01:41]} 27. Rbc1 {[%clk 0:01:51]}  Bf8 {[%clk 0:01:35]} 28. Rfd1 {[%clk 0:01:50]}  Qc7 {[%clk 0:01:31]} 29. Qc2 {[%clk 0:01:45]}  Rc6 {[%clk 0:01:21]} 30. Qxa4 {[%clk 0:01:33]}  Rxc4 {[%clk 0:01:21]} 31. Qb3 {[%clk 0:01:22]}  Qf7 {[%clk 0:01:20]} 32. Rxc4 {[%clk 0:01:20]}  Rxc4 {[%clk 0:01:20]} 33. a4 {[%clk 0:01:13]}  d5 {[%clk 0:01:08]} 34. Bxf8 {[%clk 0:01:13]}  Kxf8 {[%clk 0:01:07]} 35. Qb8+ {[%clk 0:01:13]}  Qe8 {[%clk 0:01:01]} 36. Qd6+ {[%clk 0:01:09]}  Qe7 {[%clk 0:01:01]} 37. Qxd5 {[%clk 0:01:09]}  Rxa4 {[%clk 0:00:59]} 38. Rb1 {[%clk 0:00:59]}  Rd4 {[%clk 0:00:49]} 39. Rb8+ {[%clk 0:00:56]}  Kg7 {[%clk 0:00:48]} 40. Rg8+ {[%clk 0:00:51]}  Kh6 {[%clk 0:00:48]} 41. Qf3 {[%clk 0:00:51]}  Rd8 {[%clk 0:00:26]} 42. Qe3+ {[%clk 0:00:48]}  g5 {[%clk 0:00:26]} 43. Rxd8 {[%clk 0:00:44]}  Qxd8 {[%clk 0:00:25]} 44. Qxe5 {[%clk 0:00:44]}  Kg6 {[%clk 0:00:19]} 45. Qe6+ {[%clk 0:00:44]}  Kg7 {[%clk 0:00:19]} 46. Qe5+ {[%clk 0:00:45]}  Kg6 {[%clk 0:00:19]} 47. Qe4+ {[%clk 0:00:44]}  Kg7 {[%clk 0:00:18]} 48. Kg2 {[%clk 0:00:44]}  Qf6 {[%clk 0:00:17]} 49. h3 {[%clk 0:00:43]}  h6 {[%clk 0:00:16]} 50. Qb7+ {[%clk 0:00:42]}  Kg6 {[%clk 0:00:15]} 51. Qe4+ {[%clk 0:00:42]}  Kg7 {[%clk 0:00:15]} 52. Kf1 {[%clk 0:00:42]}  Qa6+ {[%clk 0:00:13]} 53. Kg2 {[%clk 0:00:41]}  Qf6 {[%clk 0:00:12]} 1/2-1/2


[Site "https://www.chess.com"]